fUST/lending_fUST_20241223
["ID","MTS","AMOUNT","RATE_DAILY","PERIOD"]
[346327315,1734894633010,-500.0,0.00013697,2]
[346327317,1734894633019,-500.0,0.00013697,2]
[346327319,1734894633030,-500.0,0.00013697,2]
[346327321,1734894633039,-500.0,0.00013697,2]
[346327324,1734894633049,-500.0,0.00013697,2]
[346327326,1734894633060,-500.0,0.00013697,2]
[346327328,1734894633070,-500.0,0.00013697,2]
[346327330,1734894633080,-400.0,0.00013697,2]
[346327332,1734894633089,-500.0,0.00013697,2]
[346327334,1734894633099,-500.0,0.00013697,2]
[346327336,1734894633108,-500.0,0.00013697,2]
[346327338,1734894633118,-500.0,0.00013697,2]
[346327340,1734894633129,-500.0,0.00013697,2]
[346327342,1734894633138,-500.0,0.00013697,2]
[346327344,1734894633148,-151.0,0.00013698,2]
[346327346,1734894633158,-151.0,0.00013698,2]
[346327348,1734894633168,-500.0,0.00013698,2]
[346327350,1734894633177,-500.0,0.00013698,2]
[346327352,1734894633187,-500.0,0.00013698,2]
[346327354,1734894633197,-500.0,0.00013698,2]
[346327356,1734894633207,-500.0,0.00013698,2]
[346327358,1734894633217,-817.48,0.00013698,2]
[346327360,1734894633227,-500.0,0.00013698,2]
[346327362,1734894633237,-500.0,0.00013698,2]
[346327364,1734894633247,-544.9,0.00013698,2]
[346327366,1734894633256,-500.0,0.00013698,2]
[346327368,1734894633266,-500.0,0.00013698,2]
[346327370,1734894633277,-500.0,0.00013698,2]
[346327372,1734894633289,-666.8,0.00013698,2]
[346327374,1734894633298,-500.0,0.00013698,2]
[346327376,1734894633307,-614.75,0.00013698,2]
[346327378,1734894633317,-500.0,0.00013698,2]
[346327380,1734894633326,-500.0,0.00013698,2]
[346327382,1734894633336,-500.0,0.00013698,2]
[346327384,1734894633346,-500.0,0.00013698,2]
[346327386,1734894633355,-500.0,0.00013698,2]
[346327388,1734894633366,-500.0,0.00013698,2]
[346327390,1734894633375,-500.0,0.00013698,2]
[346327392,1734894633385,-151.0,0.00013698,2]
[346327394,1734894633394,-500.0,0.00013698,2]
[346327396,1734894633405,-561.07658577,0.00013698,2]
[346327398,1734894633414,-683.87,0.00013698,2]
[346327400,1734894633423,-500.0,0.00013698,2]
[346327402,1734894633432,-500.0,0.00013698,2]
[346327404,1734894633442,-580.56,0.00013698,2]
[346327406,1734894633451,-500.0,0.00013698,2]
[346327408,1734894633460,-765.54,0.00013698,2]
[346327410,1734894633469,-500.0,0.00013698,2]
[346327412,1734894633479,-555.37,0.00013698,2]
[346327414,1734894633491,-500.0,0.00013698,2]
[346327416,1734894633501,-500.0,0.00013698,2]
[346327418,1734894633511,-500.0,0.00013698,2]
[346327420,1734894633520,-500.0,0.00013698,2]
[346327422,1734894633532,-500.0,0.00013698,2]
[346327424,1734894633542,-500.0,0.00013698,2]
[346327426,1734894633551,-500.0,0.00013698,2]
[346327428,1734894633561,-500.0,0.00013698,2]
[346327430,1734894633571,-507.71543197,0.00013698,2]
[346327432,1734894633580,-500.0,0.00013698,2]
[346327434,1734894633590,-328.47414443,0.00013698,2]
[346327436,1734894633599,-500.0,0.00013698,2]
[346327438,1734894633610,-500.0,0.00013698,2]
[346327440,1734894633620,-500.0,0.00013698,2]
[346327442,1734894633629,-500.0,0.00013698,2]
[346327444,1734894633639,-500.0,0.00013698,2]
[346327446,1734894633652,-500.0,0.00013698,2]
[346327448,1734894633663,-500.0,0.00013698,2]
[346327450,1734894633672,-500.0,0.00013698,2]
[346327452,1734894633682,-509.96462413,0.00013698,2]
[346327455,1734894633692,-500.0,0.00013698,2]
[346327457,1734894633702,-500.0,0.00013698,2]
[346327459,1734894633712,-500.0,0.00013698,2]
[346327461,1734894633722,-2551.06,0.00013698,2]
[346327463,1734894633732,-500.0,0.00013698,2]
[346327465,1734894633741,-500.0,0.00013698,2]
[346327467,1734894633750,-197.86624621,0.00013698,2]
[346327469,1734894633760,-500.0,0.00013698,2]
[346327471,1734894633770,-500.0,0.00013698,2]
[346327473,1734894633781,-500.0,0.00013698,2]
[346327474,1734894633790,-500.0,0.00013698,2]
[346327476,1734894633800,-550.44,0.00013698,2]
[346327478,1734894633810,-1286.88,0.00013698,2]
[346327481,1734894633820,-410.15457137,0.00013698,2]
[346327483,1734894633829,-500.0,0.00013698,2]
[346327485,1734894633839,-500.0,0.00013698,2]
[346327487,1734894633848,-525.67,0.00013698,2]
[346327489,1734894633857,-592.64,0.00013698,2]
[346327491,1734894633867,-507.59108074,0.00013698,2]
[346327493,1734894633877,-500.0,0.00013698,2]
[346327495,1734894633887,-854.25,0.00013698,2]
[346327497,1734894633896,-1176.82,0.00013698,2]
[346327499,1734894633906,-500.0,0.00013698,2]
[346327501,1734894633916,-500.0,0.00013698,2]
[346327503,1734894633926,-500.0,0.00013698,2]
[346327505,1734894633936,-500.0,0.00013698,2]
[346327507,1734894633946,-514.05443116,0.00013698,2]
[346327509,1734894633955,-500.0,0.00013698,2]
[346327511,1734894633965,-424.56174656,0.00013698,2]
[346327513,1734894633975,-637.95,0.00013698,2]
[346327515,1734894633985,-500.0,0.00013698,2]
[346327517,1734894633994,-500.0,0.00013698,2]
[346327519,1734894634004,-760.45,0.00013698,2]
[346327521,1734894634014,-500.0,0.00013698,2]
[346327523,1734894634023,-500.0,0.00013698,2]
[346327525,1734894634033,-500.0,0.00013698,2]
[346327527,1734894634043,-666.62,0.00013698,2]
[346327529,1734894634053,-643.4,0.00013698,2]
[346327531,1734894634062,-500.0,0.00013698,2]
[346327533,1734894634072,-500.0,0.00013698,2]
[346327535,1734894634082,-1000.0,0.00013698,2]
[346327537,1734894634091,-517.82,0.00013698,2]
[346327539,1734894634101,-500.0,0.00013698,2]
[346327541,1734894634110,-607.8,0.00013698,2]
[346327543,1734894634119,-500.0,0.00013698,2]
[346327545,1734894634129,-500.0,0.00013698,2]
[346327547,1734894634139,-500.0,0.00013698,2]
[346327549,1734894634149,-500.0,0.00013698,2]
[346327551,1734894634158,-500.0,0.00013698,2]
[346327553,1734894634170,-500.0,0.00013698,2]
[346327555,1734894634180,-1035.94,0.00013698,2]
[346327557,1734894634190,-740.28,0.00013698,2]
[346327560,1734894634200,-500.0,0.00013698,2]
[346327562,1734894634210,-500.0,0.00013698,2]
[346327564,1734894634220,-500.0,0.00013698,2]
[346327566,1734894634231,-500.0,0.00013698,2]
[346327568,1734894634243,-500.0,0.00013698,2]
[346327570,1734894634253,-500.0,0.00013698,2]
[346327572,1734894634262,-500.0,0.00013698,2]
[346327574,1734894634272,-500.0,0.00013698,2]
[346327576,1734894634282,-220.69,0.00013698,2]
[346327578,1734894634291,-500.0,0.00013698,2]
[346327580,1734894634301,-500.0,0.00013698,2]
[346327582,1734894634311,-500.0,0.00013698,2]
[346327584,1734894634320,-500.0,0.00013698,2]
[346327586,1734894634329,-2063.29,0.00013698,2]
[346327588,1734894634339,-396.41373082,0.00013698,2]
[346327590,1734894634348,-500.0,0.00013698,2]
[346327592,1734894634358,-1355.32,0.00013698,2]
[346327594,1734894634368,-500.0,0.00013698,2]
[346327596,1734894634377,-500.0,0.00013698,2]
[346327598,1734894634387,-500.0,0.00013698,2]
[346327600,1734894634397,-500.0,0.00013698,2]
[346327602,1734894634407,-770.21,0.00013698,2]
[346327604,1734894634417,-268.69080599,0.00013698,2]
[346328300,1734894641234,-231.30919401,0.00013698,2]
[346328302,1734894641244,-500.0,0.00013698,2]
[346328304,1734894641253,-500.0,0.00013698,2]
[346328306,1734894641263,-500.0,0.00013698,2]
[346328309,1734894641274,-3744.3,0.00013698,2]
[346328310,1734894641286,-500.0,0.00013698,2]
[346328312,1734894641296,-502.75623695,0.00013698,2]
[346328314,1734894641305,-500.0,0.00013698,2]
[346328316,1734894641314,-802.68,0.00013698,2]
[346328318,1734894641324,-500.0,0.00013698,2]
[346328320,1734894641334,-500.0,0.00013698,2]
[346328322,1734894641343,-832.78258483,0.00013698,2]
[346328493,1734894643946,-802.70741517,0.00013698,2]
[346328495,1734894643955,-342.53033039,0.00013698,2]
[346328967,1734894667576,277.0,0.00021,120]
[346328968,1734894683000,350.0,0.00022,120]
[346328969,1734894727795,20.67540237,0.0001327,2]
[346328971,1734895484229,37691.0,0.0002,60]
[346328973,1734895631139,-339.89482663,0.000128,2]
[346328974,1734895707160,150.0,2.75e-05,120]
[346328975,1734895757111,-7194.54145162,0.000128,2]
[346328976,1734895761107,-287.03322525,0.000128,2]
[346328977,1734895761129,-316.272,0.0001327,2]
[346329070,1734895836303,-4606.34570926,0.000135,2]
[346329072,1734895836573,-5963.51161114,0.000135,2]
[346329073,1734895836583,-676.84788392,0.00013598,2]
[346329074,1734895836592,-367.15101001,0.00013598,2]
[346329075,1734895836601,-300.0,0.00013697,2]
[346329076,1734895836611,-500.0,0.00013698,2]
[346329077,1734895836621,-500.0,0.00013698,2]
[346329078,1734895836630,-500.0,0.00013698,2]
[346329079,1734895836639,-527.51,0.00013698,2]
[346329080,1734895836649,-500.0,0.00013698,2]
[346329081,1734895836658,-711.53,0.00013698,2]
[346329082,1734895836668,-500.0,0.00013698,2]
[346329083,1734895836677,-500.0,0.00013698,2]
[346329084,1734895836687,-500.0,0.00013698,2]
[346329085,1734895836698,-500.0,0.00013698,2]
[346329086,1734895836708,-1127.79,0.00013698,2]
[346329087,1734895836718,-500.0,0.00013698,2]
[346329088,1734895836727,-500.0,0.00013698,2]
[346329089,1734895836737,-500.0,0.00013698,2]
[346329090,1734895836746,-500.0,0.00013698,2]
[346329091,1734895836756,-611.37,0.00013698,2]
[346329092,1734895836765,-500.0,0.00013698,2]
[346329093,1734895836775,-738.12,0.00013698,2]
[346329094,1734895836785,-374.70637749,0.00013698,2]
[346329095,1734895836794,-500.0,0.00013698,2]
[346329096,1734895836804,-500.0,0.00013698,2]
[346329097,1734895836813,-237.18268341,0.00013698,2]
[346329098,1734895836823,-500.0,0.00013698,2]
[346329099,1734895836833,-500.0,0.00013698,2]
[346329100,1734895836843,-604.62222817,0.00013698,2]
[346329101,1734895836852,-500.0,0.00013698,2]
[346329102,1734895836862,-500.0,0.00013698,2]
[346329103,1734895836871,-500.0,0.00013698,2]
[346329104,1734895836880,-1144.97,0.00013698,2]
[346329105,1734895836890,-500.0,0.00013698,2]
[346329106,1734895836900,-500.0,0.00013698,2]
[346329107,1734895836910,-500.0,0.00013698,2]
[346329108,1734895836920,-500.0,0.00013698,2]
[346329109,1734895836929,-500.0,0.00013698,2]
[346329110,1734895836938,-500.0,0.00013698,2]
[346329111,1734895836949,-500.0,0.00013698,2]
[346329112,1734895836958,-500.0,0.00013698,2]
[346329113,1734895836968,-500.0,0.00013698,2]
[346329114,1734895836980,-2190.13,0.00013698,2]
[346329115,1734895836989,-500.0,0.00013698,2]
[346329116,1734895836999,-500.0,0.00013698,2]
[346329117,1734895837009,-500.0,0.00013698,2]
[346329118,1734895837019,-500.0,0.00013698,2]
[346329119,1734895837028,-1233.26,0.00013698,2]
[346329120,1734895837037,-500.0,0.00013698,2]
[346329121,1734895837047,-500.0,0.00013698,2]
[346329122,1734895837057,-567.95,0.00013698,2]
[346329123,1734895837066,-500.0,0.00013698,2]
[346329124,1734895837076,-818.66,0.00013698,2]
[346329125,1734895837085,-615.63,0.00013698,2]
[346329126,1734895837094,-500.0,0.00013698,2]
[346329127,1734895837104,-504.92929516,0.00013698,2]
[346329128,1734895837114,-500.0,0.00013698,2]
[346329129,1734895837123,-500.0,0.00013698,2]
[346329130,1734895837132,-728.76,0.00013698,2]
[346329131,1734895837142,-197.61136259,0.00013698,2]
[346329132,1734895837151,-500.0,0.00013698,2]
[346329133,1734895837161,-616.6,0.00013698,2]
[346329134,1734895837170,-500.0,0.00013698,2]
[346329135,1734895837179,-500.0,0.00013698,2]
[346329136,1734895837189,-500.0,0.00013698,2]
[346329137,1734895837201,-500.0,0.00013698,2]
[346329138,1734895837210,-500.0,0.00013698,2]
[346329139,1734895837219,-500.0,0.00013698,2]
[346329140,1734895837229,-582.48,0.00013698,2]
[346329141,1734895837238,-500.0,0.00013698,2]
[346329142,1734895837247,-500.0,0.00013698,2]
[346329143,1734895837257,-500.0,0.00013698,2]
[346329144,1734895837267,-618.09,0.00013698,2]
[346329145,1734895837276,-500.0,0.00013698,2]
[346329146,1734895837285,-500.0,0.00013698,2]
[346329147,1734895837295,-709.43,0.00013698,2]
[346329148,1734895837304,-500.0,0.00013698,2]
[346329149,1734895837313,-500.0,0.00013698,2]
[346329150,1734895837323,-500.0,0.00013698,2]
[346329151,1734895837333,-1013.61,0.00013698,2]
[346329152,1734895837342,-500.0,0.00013698,2]
[346329153,1734895837351,-237.06831383,0.00013698,2]
[346329155,1734895837361,-288.48081127,0.00013698,2]
[346329156,1734895837370,-231.57,0.00013698,2]
[346329157,1734895837379,-500.0,0.00013698,2]
[346329158,1734895837389,-500.0,0.00013698,2]
[346329159,1734895837399,-1298.84,0.00013698,2]
[346329160,1734895837408,-827.65,0.00013698,2]
[346329161,1734895837418,-500.0,0.00013698,2]
[346329162,1734895837427,-1977.32,0.00013698,2]
[346329163,1734895837437,-500.0,0.00013698,2]
[346329164,1734895837452,-500.0,0.00013698,2]
[346329165,1734895837462,-500.0,0.00013698,2]
[346329166,1734895837473,-500.0,0.00013698,2]
[346329167,1734895837484,-500.0,0.00013698,2]
[346329169,1734895837494,-500.0,0.00013698,2]
[346329171,1734895837503,-500.0,0.00013698,2]
[346329173,1734895837512,-500.0,0.00013698,2]
[346329175,1734895837522,-500.0,0.00013698,2]
[346329177,1734895837531,-500.0,0.00013698,2]
[346329179,1734895837541,-500.0,0.00013698,2]
[346329181,1734895837550,-3834.83,0.00013698,2]
[346329183,1734895837560,-500.0,0.00013698,2]
[346329185,1734895837569,-500.0,0.00013698,2]
[346329187,1734895837578,-500.0,0.00013698,2]
[346329189,1734895837588,-500.0,0.00013698,2]
[346329191,1734895837598,-580.6856816,0.00013698,2]
[346329193,1734895837607,-769.23,0.00013698,2]
[346329195,1734895837617,-500.0,0.00013698,2]
[346329197,1734895837626,-356.80300889,0.00013698,2]
[346329198,1734895837635,-528.97513165,0.00013698,2]
[346329201,1734895837645,-1567.34,0.00013698,2]
[346329202,1734895837655,-500.0,0.00013698,2]
[346329205,1734895837664,-1684.33,0.00013698,2]
[346329207,1734895837673,-500.0,0.00013698,2]
[346329209,1734895837683,-500.0,0.00013698,2]
[346329211,1734895837692,-2075.78,0.00013698,2]
[346329213,1734895837704,-1038.6,0.00013698,2]
[346329215,1734895837714,-500.0,0.00013698,2]
[346329217,1734895837723,-1270.4,0.00013698,2]
[346329218,1734895837733,-1342.34,0.00013698,2]
[346329221,1734895837742,-500.0,0.00013698,2]
[346329223,1734895837753,-1096.45,0.00013698,2]
[346329225,1734895837763,-1216.6,0.00013698,2]
[346329226,1734895837774,-500.0,0.00013698,2]
[346329228,1734895837783,-500.0,0.00013698,2]
[346329231,1734895837793,-500.0,0.00013698,2]
[346329233,1734895837802,-500.0,0.00013698,2]
[346329235,1734895837812,-552.16,0.00013698,2]
[346329237,1734895837821,-500.0,0.00013698,2]
[346329239,1734895837831,-500.0,0.00013698,2]
[346329241,1734895837841,-500.0,0.00013698,2]
[346329243,1734895837850,-718.84,0.00013698,2]
[346329245,1734895837860,-500.0,0.00013698,2]
[346329247,1734895837870,-500.0,0.00013698,2]
[346329249,1734895837879,-556.56,0.00013698,2]
[346329251,1734895837889,-500.0,0.00013698,2]
[346329253,1734895837899,-500.0,0.00013698,2]
[346329255,1734895837908,-500.0,0.00013698,2]
[346329257,1734895837918,-500.0,0.00013698,2]
[346329259,1734895837927,-500.0,0.00013698,2]
[346329261,1734895837937,-500.0,0.00013698,2]
[346329263,1734895837947,-1018.75,0.00013698,2]
[346329265,1734895837960,-500.0,0.00013698,2]
[346329267,1734895837969,-1152.74,0.00013698,2]
[346329269,1734895837978,-500.0,0.00013698,2]
[346329272,1734895837989,-500.0,0.00013698,2]
[346329275,1734895837998,-732.98,0.00013698,2]
[346329278,1734895838007,-500.0,0.00013698,2]
[346329281,1734895838017,-500.0,0.00013698,2]
[346329284,1734895838026,-500.0,0.00013698,2]
[346329286,1734895838036,-500.0,0.00013698,2]
[346329288,1734895838046,-761.51,0.00013698,2]
[346329290,1734895838055,-500.0,0.00013698,2]
[346329292,1734895838064,-528.59,0.00013698,2]
[346329294,1734895838074,-931.94,0.00013698,2]
[346329296,1734895838083,-804.25,0.00013698,2]
[346329298,1734895838093,-703.37,0.00013698,2]
[346329300,1734895838103,-500.0,0.00013698,2]
[346329302,1734895838112,-500.0,0.00013698,2]
[346329303,1734895838121,-702.24,0.00013698,2]
[346329304,1734895838131,-500.0,0.00013698,2]
[346329305,1734895838140,-500.0,0.00013698,2]
[346329306,1734895838149,-500.0,0.00013698,2]
[346329307,1734895838159,-1269.05,0.00013698,2]
[346329308,1734895838168,-1458.84,0.00013698,2]
[346329309,1734895838178,-639.01,0.00013698,2]
[346329310,1734895838187,-634.97,0.00013698,2]
[346329311,1734895838196,-589.13,0.00013698,2]
[346329312,1734895838213,-515.88,0.00013698,2]
[346329313,1734895838222,-522.2,0.00013698,2]
[346329314,1734895838231,-500.0,0.00013698,2]
[346329315,1734895838240,-500.0,0.00013698,2]
[346329316,1734895838250,-2333.53,0.00013698,2]
[346329317,1734895838259,-1617.68,0.00013698,2]
[346329318,1734895838273,-500.0,0.00013698,2]
[346329319,1734895838283,-541.55585368,0.00013698,2]
[346329321,1734895838294,-1649.19,0.00013698,2]
[346329323,1734895838304,-2860.22,0.00013698,2]
[346329325,1734895838314,-949.57,0.00013698,2]
[346329327,1734895838323,-500.0,0.00013698,2]
[346329329,1734895838332,-500.0,0.00013698,2]
[346329331,1734895838342,-3009.99,0.00013698,2]
[346329334,1734895838363,-1700.56,0.00013698,2]
[346329336,1734895838373,-315.25449114,0.00013698,2]
[346329338,1734895838383,-500.0,0.00013698,2]
[346329340,1734895838392,-1306.14,0.00013698,2]
[346329342,1734895838402,-4868.96,0.00013698,2]
[346329344,1734895838411,-560.26,0.00013698,2]
[346329346,1734895838421,-500.0,0.00013698,2]
[346329348,1734895838431,-500.0,0.00013698,2]
[346329350,1734895838441,-2104.91,0.00013698,2]
[346329352,1734895838454,-1106.85,0.00013698,2]
[346329354,1734895838464,-500.0,0.00013698,2]
[346329356,1734895838475,-500.0,0.00013698,2]
[346329358,1734895838486,-500.0,0.00013698,2]
[346329360,1734895838495,-1871.27,0.00013698,2]
[346329362,1734895838506,-500.0,0.00013698,2]
[346329364,1734895838516,-500.0,0.00013698,2]
[346329367,1734895838526,-500.0,0.00013698,2]
[346329369,1734895838536,-500.0,0.00013698,2]
[346329371,1734895838545,-784.43,0.00013698,2]
[346329373,1734895838555,-500.0,0.00013698,2]
[346329375,1734895838565,-1111.11,0.00013698,2]
[346329377,1734895838575,-500.0,0.00013698,2]
[346329379,1734895838584,-500.0,0.00013698,2]
[346329381,1734895838593,-577.21,0.00013698,2]
[346329383,1734895838603,-5602.9,0.00013698,2]
[346329385,1734895838613,-1498.29,0.00013698,2]
[346329387,1734895838625,-500.0,0.00013698,2]
[346329389,1734895838635,-1266.06,0.00013698,2]
[346329391,1734895838644,-933.18,0.00013698,2]
[346329393,1734895838654,-500.0,0.00013698,2]
[346329395,1734895838663,-500.0,0.00013698,2]
[346329397,1734895838673,-3150.23,0.00013698,2]
[346329399,1734895838683,-646.14,0.00013698,2]
[346329401,1734895838692,-676.21,0.00013698,2]
[346329403,1734895838703,-500.0,0.00013698,2]
[346329405,1734895838713,-1411.61,0.00013698,2]
[346329407,1734895838723,-500.0,0.00013698,2]
[346329409,1734895838732,-500.0,0.00013698,2]
[346329412,1734895838743,-676.31,0.00013698,2]
[346329414,1734895838753,-500.0,0.00013698,2]
[346329416,1734895838762,-500.0,0.00013698,2]
[346329418,1734895838772,-553.06,0.00013698,2]
[346329420,1734895838781,-500.0,0.00013698,2]
[346329422,1734895838790,-2938.6,0.00013698,2]
[346329424,1734895838800,-500.0,0.00013698,2]
[346329426,1734895838809,-500.0,0.00013698,2]
[346329428,1734895838819,-578.12,0.00013698,2]
[346329430,1734895838829,-500.0,0.00013698,2]
[346329432,1734895838838,-500.0,0.00013698,2]
[346329434,1734895838848,-500.0,0.00013698,2]
[346329436,1734895838857,-500.0,0.00013698,2]
[346329438,1734895838867,-500.0,0.00013698,2]
[346329440,1734895838877,-579.17,0.00013698,2]
[346329442,1734895838887,-727.4,0.00013698,2]
[346329444,1734895838896,-500.0,0.00013698,2]
[346329446,1734895838905,-500.0,0.00013698,2]
[346329448,1734895838915,-1050.18,0.00013698,2]
[346329450,1734895838925,-947.45,0.00013698,2]
[346329452,1734895838935,-733.64,0.00013698,2]
[346329454,1734895838945,-2124.47,0.00013698,2]
[346329456,1734895838955,-500.0,0.00013698,2]
[346329458,1734895838965,-691.73,0.00013698,2]
[346329460,1734895838974,-29752.32,0.00013698,2]
[346329462,1734895838984,-500.0,0.00013698,2]
[346329464,1734895838993,-500.0,0.00013698,2]
[346329466,1734895839003,-500.0,0.00013698,2]
[346329468,1734895839012,-500.0,0.00013698,2]
[346329470,1734895839022,-500.0,0.00013698,2]
[346329472,1734895839033,-1661.69,0.00013698,2]
[346329474,1734895839043,-500.0,0.00013698,2]
[346329476,1734895839053,-617.68,0.00013698,2]
[346329478,1734895839063,-500.0,0.00013698,2]
[346329481,1734895839073,-15314.54,0.00013698,2]
[346329483,1734895839083,-69927.29,0.00013698,2]
[346329485,1734895839093,-500.0,0.00013698,2]
[346329487,1734895839103,-518.18,0.00013698,2]
[346329489,1734895839113,-926.85,0.00013698,2]
[346329491,1734895839122,-1419.1,0.00013698,2]
[346329493,1734895839131,-500.0,0.00013698,2]
[346329495,1734895839140,-500.0,0.00013698,2]
[346329497,1734895839150,-4338.95,0.00013698,2]
[346329499,1734895839159,-500.0,0.00013698,2]
[346329501,1734895839169,-583.65,0.00013698,2]
[346329503,1734895839179,-500.0,0.00013698,2]
[346329505,1734895839189,-500.0,0.00013698,2]
[346329507,1734895839199,-500.0,0.00013698,2]
[346329509,1734895839208,-500.0,0.00013698,2]
[346329511,1734895839218,-500.0,0.00013698,2]
[346329513,1734895839228,-518.19358135,0.00013698,2]
[346329515,1734895839238,-507.24110165,0.00013698,2]
[346329518,1734895839248,-926.98,0.00013698,2]
[346329520,1734895839258,-11218.66,0.00013698,2]
[346329522,1734895839267,-500.0,0.00013698,2]
[346329524,1734895839277,-500.0,0.00013698,2]
[346329526,1734895839287,-544.4,0.00013698,2]
[346329528,1734895839296,-500.0,0.00013698,2]
[346329530,1734895839306,-500.0,0.00013698,2]
[346329533,1734895839315,-157.86878543,0.00013698,2]
[346329536,1734895839325,-500.0,0.00013698,2]
[346329538,1734895839334,-500.0,0.00013698,2]
[346329540,1734895839344,-500.0,0.00013698,2]
[346329542,1734895839353,-500.0,0.00013698,2]
[346329544,1734895839363,-356.71885833,0.00013698,2]
[346329546,1734895839372,-500.0,0.00013698,2]
[346329548,1734895839382,-500.0,0.00013698,2]
[346329550,1734895839392,-500.0,0.00013698,2]
[346329552,1734895839402,-549.96,0.00013698,2]
[346329554,1734895839412,-500.0,0.00013698,2]
[346329556,1734895839422,-500.0,0.00013698,2]
[346329558,1734895839432,-508.20192022,0.00013698,2]
[346329560,1734895839442,-21921.41,0.00013698,2]
[346329564,1734895839455,-870.35,0.00013698,2]
[346329566,1734895839466,-500.0,0.00013698,2]
[346329568,1734895839475,-500.0,0.00013698,2]
[346329570,1734895839485,-500.0,0.00013698,2]
[346329572,1734895839494,-3394.48,0.00013698,2]
[346329574,1734895839504,-551.06,0.00013698,2]
[346329576,1734895839514,-500.0,0.00013698,2]
[346329578,1734895839523,-500.0,0.00013698,2]
[346329580,1734895839533,-500.0,0.00013698,2]
[346329582,1734895839544,-4728.65,0.00013698,2]
[346329584,1734895839553,-500.0,0.00013698,2]
[346329586,1734895839563,-3321.96,0.00013698,2]
[346329588,1734895839573,-500.0,0.00013698,2]
[346329590,1734895839582,-3067.82,0.00013698,2]
[346329592,1734895839592,-500.0,0.00013698,2]
[346329594,1734895839601,-502.1722543,0.00013698,2]
[346329596,1734895839611,-522.47015995,0.00013698,2]
[346329598,1734895839621,-812.08,0.00013698,2]
[346329600,1734895839631,-1424.63,0.00013698,2]
[346329602,1734895839641,-500.0,0.00013698,2]
[346329604,1734895839650,-556.98868891,0.00013698,2]
[346329606,1734895839660,-500.0,0.00013698,2]
[346329608,1734895839670,-500.0,0.00013698,2]
[346329610,1734895839680,-610.17,0.00013698,2]
[346329612,1734895839689,-500.0,0.00013698,2]
[346329614,1734895839699,-7619.88,0.00013698,2]
[346329616,1734895839709,-500.0,0.00013698,2]
[346329618,1734895839719,-6317.79,0.00013698,2]
[346329620,1734895839729,-864.12,0.00013698,2]
[346329622,1734895839739,-1466.63,0.00013698,2]
[346329624,1734895839748,-500.0,0.00013698,2]
[346329626,1734895839757,-618.66,0.00013698,2]
[346329628,1734895839767,-500.0,0.00013698,2]
[346329630,1734895839777,-500.0,0.00013698,2]
[346329632,1734895839786,-1068.43,0.00013698,2]
[346329634,1734895839796,-500.0,0.00013698,2]
[346329636,1734895839806,-367.95330512,0.00013698,2]
[346329638,1734895839815,-2444.77,0.00013698,2]